fUSD/lending_fUSD_20260309
["ID","MTS","AMOUNT","RATE_DAILY","PERIOD"]
[408018310,1773031831753,-5000.0,0.00014114,2]
[408018311,1773031831763,-1109.0,0.00014218,2]
[408018312,1773031831772,-503.31399399,0.000143,2]
[408018313,1773031831781,-1109.0,0.00014966,2]
[408018314,1773031831790,-150.0,0.00014999,2]
[408018315,1773031831799,-500.0,0.00015,30]
[408018316,1773031831808,-500.0,0.00015,30]
[408018317,1773031831817,-500.0,0.00015,30]
[408018318,1773031831826,-500.0,0.00015,30]
[408018319,1773031831835,-500.0,0.00015,30]
[408018320,1773031831844,-500.0,0.00015,30]
[408018321,1773031831854,-500.0,0.00015,30]
[408018322,1773031831863,-500.0,0.00015,30]
[408018323,1773031831872,-500.0,0.00015,30]
[408018324,1773031831881,-500.0,0.00015,30]
[408018325,1773031831890,-162.51,0.00015114,2]
[408018326,1773031831899,-1786.82,0.00015639,2]
[408018327,1773031831909,-1109.0,0.00015754,2]
[408018328,1773031831918,-189.97625031,0.00016,30]
[408018329,1773031831928,-204.28312793,0.00016044,2]
[408018330,1773031831938,-175.54,0.00016044,2]
[408018331,1773031831947,-162.51,0.00016229,2]
[408018332,1773031831956,-270.0,0.00016524,2]
[408018333,1773031831966,-1109.0,0.00016541,2]
[408018334,1773031831975,-9999.99,0.00016922,2]
[408018335,1773031831984,-500.0,0.0001694,2]
[408018336,1773031831995,-500.23838819,0.0001694,2]
[408018337,1773031832004,-500.0,0.0001694,2]
[408018338,1773031832015,-500.0,0.0001694,2]
[408018339,1773031832025,-500.0,0.0001694,2]
[408018340,1773031832034,-502.1202599,0.0001695,2]
[408018341,1773031832043,-501.0,0.00017,2]
[408018342,1773031832052,-162.51,0.00017343,2]
[408018343,1773031832061,-500.0,0.00017358,2]
[408018344,1773031832070,-151.0,0.00017358,2]
[408018345,1773031832079,-500.0,0.00017358,2]
[408018346,1773031832088,-151.0,0.00017358,2]
[408018347,1773031832098,-500.0,0.00017358,2]
[408018348,1773031832107,-151.0,0.00017358,2]
[408018349,1773031832116,-500.0,0.00017358,2]
[408018350,1773031832125,-151.0,0.00017358,2]
[408018351,1773031832134,-500.0,0.00017358,2]
[408018352,1773031832143,-151.0,0.00017358,2]
[408018353,1773031832152,-151.0,0.00017358,2]
[408018354,1773031832161,-500.0,0.00017358,2]
[408018355,1773031832170,-151.0,0.00017358,2]
[408018356,1773031832179,-500.0,0.00017358,2]
[408018357,1773031832190,-151.0,0.00017358,2]
[408018358,1773031832199,-500.0,0.00017358,2]
[408018359,1773031832210,-151.0,0.00017358,2]
[408018360,1773031832221,-500.0,0.00017358,2]
[408018361,1773031832229,-151.0,0.00017358,2]
[408018362,1773031832238,-500.0,0.00017358,2]
[408018363,1773031832247,-151.0,0.00017358,2]
[408018364,1773031832257,-500.0,0.00017358,2]
[408018365,1773031832266,-500.0,0.00017358,2]
[408018366,1773031832275,-500.0,0.00017358,2]
[408018367,1773031832284,-500.0,0.00017358,2]
[408018368,1773031832294,-500.0,0.00017358,2]
[408018369,1773031832303,-151.0,0.00017358,2]
[408018370,1773031832312,-500.0,0.00017358,2]
[408018371,1773031832322,-500.0,0.00017358,2]
[408018372,1773031832331,-500.0,0.00017358,2]
[408018373,1773031832340,-500.0,0.00017358,2]
[408018374,1773031832350,-500.0,0.00017358,2]
[408018375,1773031832360,-500.0,0.00017358,2]
[408018376,1773031832370,-500.0,0.00017358,2]
[408018377,1773031832380,-500.0,0.00017358,2]
[408018378,1773031832389,-151.0,0.00017358,2]
[408018379,1773031832399,-151.0,0.00017358,2]
[408018380,1773031832410,-151.0,0.00017358,2]
[408018381,1773031832420,-151.0,0.00017358,2]
[408018382,1773031832429,-151.0,0.00017358,2]
[408018383,1773031832438,-151.0,0.00017358,2]
[408018384,1773031832448,-151.0,0.00017358,2]
[408018385,1773031832457,-151.0,0.00017358,2]
[408018386,1773031832467,-151.0,0.00017358,2]
[408018387,1773031832476,-151.0,0.00017358,2]
[408018388,1773031832486,-151.0,0.00017358,2]
[408018389,1773031832495,-151.0,0.00017358,2]
[408018390,1773031832504,-151.0,0.00017358,2]
[408018391,1773031832514,-151.0,0.00017358,2]
[408018392,1773031832524,-151.0,0.00017358,2]
[408018393,1773031832538,-151.0,0.00017358,2]
[408018394,1773031832548,-151.0,0.00017358,2]
[408018395,1773031832558,-151.0,0.00017358,2]
[408018396,1773031832567,-151.0,0.00017358,2]
[408018397,1773031832578,-151.0,0.00017358,2]
[408018398,1773031832587,-1109.0,0.00017368,2]
[408018399,1773031832597,-1000.0,0.00017488,2]
[408018400,1773031832607,-226.88022743,0.00017488,2]
[408018401,1773031832616,-1000.0,0.00017488,2]
[408018402,1773031832626,-1000.0,0.00017488,2]
[408018403,1773031832636,-985.17,0.00017645,2]
[408018404,1773031832645,-150.0,0.00017769,2]
[408018405,1773031832655,-1500.0,0.00018036,2]
[408018406,1773031832665,-177.15795408,0.00018036,2]
[408018410,1773031837673,-1322.84204592,0.00018036,2]
[408018411,1773031837683,-200.0,0.00018055,2]
[408018412,1773031837692,-1400.0,0.00018082,7]
[408018413,1773031837703,-1109.0,0.00018237,2]
[408018414,1773031837712,-500.0,0.00018356,7]
[408018415,1773031837721,-1200.0,0.00018356,7]
[408018416,1773031837731,-511.19537577,0.00018367,2]
[408018417,1773031837740,-500.0,0.00018396,2]
[408018418,1773031837750,-161.0,0.000184,2]
[408018419,1773031837759,-162.51,0.00018457,2]
[408018420,1773031837768,-3424.26,0.00018499,2]
[408018421,1773031837778,-501.0,0.00018537,3]
[408018422,1773031837787,-1000.0,0.00018584,2]
[408018423,1773031837796,-1500.0,0.00018584,2]
[408018424,1773031837806,-426.19500043,0.00018811,2]
[408018425,1773031837815,-160.0,0.00018964,2]
[408018426,1773031837825,-500.0,0.00018999,2]
[408018427,1773031837834,-1514.36528339,0.00018999,2]
[408018428,1773031837843,-689.59561959,0.00018999,2]
[408018429,1773031837852,-174.61919141,0.00018999,2]
[408018430,1773031837861,-290.26104003,0.00018999,2]
[408018431,1773031837870,-243.89960944,0.00018999,2]
[408018432,1773031837879,-3240.0,0.00019025,2]
[408018433,1773031837889,-1109.0,0.00019148,2]
[408018434,1773031837898,-1400.0,0.00019178,7]
[408018435,1773031837907,-1000.0,0.00019178,2]
[408018436,1773031837916,-2000.0,0.000192,2]
[408018437,1773031837925,-151.0,0.00019353,2]
[408018438,1773031837935,-153.33762345,0.00019377,2]
[408018440,1773031837943,-65496.89086837,0.00019441,2]
[408018441,1773031837953,-487.0,0.00019451,2]
[408018442,1773031837961,-500.0,0.00019452,7]
[408018443,1773031837970,-1200.0,0.00019452,7]
[408018444,1773031837979,-1000.0,0.00019452,2]
[408018445,1773031837988,-151.0,0.0001946,2]
[408018446,1773031837997,-163.22533402,0.00019473,2]
[408018447,1773031838006,-500.0,0.00019473,2]
[408018448,1773031838015,-500.0,0.00019473,2]
[408018449,1773031838024,-500.0,0.00019473,2]
[408018451,1773031838035,-487.0,0.00019504,2]
[408018453,1773031838044,-181.08010149,0.00019547,2]
[408018455,1773031838053,-301.00069851,0.00019547,2]
[408018457,1773031838062,-487.0,0.00019555,2]
[408018458,1773031838071,-151.0,0.00019568,2]
[408018459,1773031838081,-162.51,0.00019571,2]
[408018460,1773031838090,-232.08264784,0.000196,2]
[408018461,1773031838099,-1504.750327,0.000196,2]
[408018462,1773031838108,-1500.0,0.000196,2]
[408018463,1773031838117,-1500.0,0.000196,2]
[408018464,1773031838126,-1039.51242419,0.000196,2]
[408018469,1773031840030,-1875.16486781,0.000196,2]
[408018470,1773031840039,-345.01560583,0.00019626,2]
[408018471,1773031840049,-487.0,0.00019628,2]
[408018472,1773031840058,-345.01560582,0.00019656,2]
[408018473,1773031840067,-280.93851437,0.00019672,2]
[408018474,1773031840076,-150.0,0.00019672,2]
[408018475,1773031840086,-150.0,0.00019672,2]
[408018476,1773031840095,-500.0,0.00019672,2]
[408018477,1773031840105,-254.25959733,0.00019672,2]
[408018478,1773031840115,-500.0,0.00019672,2]
[408018479,1773031840124,-500.0,0.00019672,2]
[408018480,1773031840133,-150.84360211,0.00019672,2]
[408018481,1773031840143,-259.72265383,0.00019672,2]
[408018482,1773031840153,-150.0,0.00019672,2]
[408018483,1773031840163,-500.0,0.00019672,2]
[408018484,1773031840172,-150.0,0.00019672,2]
[408018485,1773031840182,-500.0,0.00019672,2]
[408018486,1773031840191,-150.0,0.00019672,2]
[408018487,1773031840200,-500.0,0.00019672,2]
[408018488,1773031840209,-500.0,0.00019672,2]
[408018489,1773031840219,-150.0,0.00019672,2]
[408018490,1773031840228,-500.0,0.00019672,2]
[408018491,1773031840238,-500.0,0.00019672,2]
[408018492,1773031840247,-150.0,0.00019672,2]
[408018493,1773031840257,-151.0,0.00019676,2]
[408018494,1773031840266,-2232.0,0.0001968,2]
[408018495,1773031840275,-345.01560582,0.00019687,2]
[408018496,1773031840284,-150.0,0.00019714,2]
[408018497,1773031840294,-244.64589217,0.00019714,2]
[408018498,1773031840303,-591.89,0.00019714,2]
[408018499,1773031840312,-345.01560582,0.00019717,2]
[408018500,1773031840321,-182.885,0.00019726,2]
[408018501,1773031840330,-2674.879,0.00019726,2]
[408018502,1773031840339,-1000.0,0.00019726,2]
[408018503,1773031840348,-150.0,0.00019727,2]
[408018504,1773031840359,-150.0,0.00019727,2]
[408018505,1773031840369,-500.0,0.00019727,2]
[408018506,1773031840378,-500.0,0.00019727,2]
[408018507,1773031840386,-500.0,0.00019727,2]
[408018508,1773031840396,-150.0,0.00019727,2]
[408018509,1773031840404,-500.0,0.00019727,2]
[408018510,1773031840414,-150.0,0.00019727,2]
[408018511,1773031840423,-500.0,0.00019727,2]
[408018512,1773031840432,-500.0,0.00019727,2]
[408018513,1773031840441,-500.0,0.00019727,2]
[408018514,1773031840451,-500.0,0.00019727,2]
[408018515,1773031840460,-438.01614418,0.00019727,2]
[408018516,1773031840469,-345.01560582,0.00019748,2]
[408018517,1773031840479,-350.0,0.00019753,2]
[408018518,1773031840488,-190.06683403,0.00019769,2]
[408018519,1773031840497,-294.31392228,0.00019773,2]
[408018520,1773031840506,-345.01560582,0.00019778,2]
[408018521,1773031840516,-150.0,0.00019782,2]
[408018522,1773031840525,-150.0,0.00019782,2]
[408018523,1773031840537,-237.03813108,0.00019782,2]
[408018524,1773031840546,-500.0,0.00019782,2]
[408018525,1773031840555,-361.85670277,0.00019782,2]
[408018526,1773031840564,-192.86837004,0.00019782,2]
[408018527,1773031840576,-537.8007681,0.00019782,2]
[408018528,1773031840585,-150.0,0.00019782,2]
[408018529,1773031840595,-500.0,0.00019782,2]
[408018530,1773031840605,-500.0,0.00019782,2]
[408018531,1773031840614,-500.0,0.00019782,2]
[408018532,1773031840623,-500.0,0.00019782,2]
[408018533,1773031840633,-151.0,0.00019784,2]
[408018534,1773031840642,-294.31392221,0.00019791,2]
[408018535,1773031840651,-487.0,0.00019793,2]
[408018536,1773031840660,-1000.0,0.000198,2]
[408018537,1773031840670,-345.01560582,0.00019809,2]
[408018538,1773031840679,-294.31392221,0.00019809,2]
[408018539,1773031840688,-114923.84707944,0.0001981,2]
[408018540,1773031840698,-168.0,0.00019819,2]
[408018541,1773031840707,-294.31392221,0.00019827,2]
[408018542,1773031840717,-150.0,0.00019836,2]
[408018543,1773031840726,-150.0,0.00019836,2]
[408018544,1773031840735,-252.77032458,0.00019836,2]
[408018545,1773031840744,-211.27450762,0.00019836,2]
[408018546,1773031840753,-500.0,0.00019836,2]
[408018547,1773031840762,-345.01560582,0.00019839,2]
[408018548,1773031840771,-200.0,0.0001984,2]
[408018549,1773031840780,-294.31392221,0.00019846,2]
[408018550,1773031840789,-345.01560582,0.0001987,2]
[408018551,1773031840799,-500.0,0.00019872,2]
[408018552,1773031840808,-543.28516299,0.00019872,2]
[408018553,1773031840817,-500.0,0.00019873,2]
[408018554,1773031840826,-501.66559118,0.00019873,2]
[408018555,1773031840835,-500.0,0.00019873,2]
[408018556,1773031840844,-6752.0367,0.00019888,2]
[408018557,1773031840853,-150.0,0.00019891,2]
[408018558,1773031840862,-150.0,0.00019891,2]
[408018559,1773031840875,-151.0,0.00019892,2]
[408018560,1773031840885,-2500.0,0.00019898,2]
[408018561,1773031840894,-500.0,0.00019899,2]
[408018562,1773031840903,-591.25,0.00019899,2]
[408018563,1773031840913,-500.0,0.00019899,2]
[408018564,1773031840923,-500.0,0.00019899,2]
[408018565,1773031840932,-500.0,0.00019899,2]
[408018566,1773031840942,-702.19,0.00019899,2]
[408018567,1773031840951,-500.0,0.00019899,2]
[408018568,1773031840961,-500.0,0.00019899,2]
[408018569,1773031840971,-1861.5137327,0.00019899,2]
[408018570,1773031840980,-1861.51373265,0.00019899,2]
[408018571,1773031840990,-1861.51373265,0.00019899,2]
[408018572,1773031841008,-1861.51373265,0.00019899,2]
[408018573,1773031841029,-1861.51373265,0.00019899,2]
[408018574,1773031841045,-1861.51373265,0.000199,2]
[408018575,1773031841055,-1861.51373265,0.000199,2]
[408018576,1773031841065,-1861.51373265,0.000199,2]
[408018577,1773031841076,-487.0,0.000199,2]
[408018578,1773031841086,-487.0,0.000199,2]
[408018579,1773031841097,-487.0,0.000199,2]
[408018581,1773031841106,-487.0,0.000199,2]
[408018582,1773031841117,-487.0,0.000199,2]
[408018583,1773031841127,-487.0,0.000199,2]
[408018584,1773031841136,-487.0,0.000199,2]
[408018585,1773031841146,-487.0,0.000199,2]
[408018586,1773031841155,-487.0,0.000199,2]
[408018587,1773031841165,-487.0,0.000199,2]
[408018588,1773031841174,-487.0,0.000199,2]
[408018589,1773031841184,-487.0,0.000199,2]
[408018590,1773031841193,-487.0,0.000199,2]
[408018591,1773031841203,-487.0,0.000199,2]
[408018592,1773031841213,-487.0,0.000199,2]
[408018593,1773031841223,-487.0,0.000199,2]
[408018594,1773031841233,-487.0,0.000199,2]
[408018595,1773031841242,-487.0,0.000199,2]
[408018596,1773031841251,-487.0,0.000199,2]
[408018597,1773031841261,-487.0,0.000199,2]
[408018598,1773031841271,-487.0,0.000199,2]
[408018599,1773031841291,-487.0,0.000199,2]
[408018600,1773031841300,-487.0,0.000199,2]
[408018601,1773031841311,-487.0,0.000199,2]
[408018602,1773031841320,-487.0,0.000199,2]
[408018603,1773031841330,-487.0,0.000199,2]
[408018604,1773031841341,-487.0,0.000199,2]
[408018605,1773031841351,-487.0,0.000199,2]
[408018606,1773031841360,-487.0,0.000199,2]
[408018607,1773031841370,-487.0,0.000199,2]
[408018608,1773031841379,-487.0,0.000199,2]
[408018609,1773031841389,-487.0,0.000199,2]
[408018610,1773031841399,-487.0,0.000199,2]
[408018611,1773031841412,-619.13,0.000199,2]
[408018612,1773031841421,-1861.51373265,0.000199,2]
[408018613,1773031841431,-1685.64194368,0.000199,3]
[408018614,1773031841440,-2000.0,0.000199,2]
[408018615,1773031841450,-2403.95604007,0.000199,2]
[408018616,1773031841460,-861.48302723,0.000199,2]
[408018617,1773031841470,-345.01560582,0.000199,2]
[408018618,1773031841479,-1861.51373265,0.000199,2]
[408018619,1773031841489,-616.51078411,0.000199,2]
[408018620,1773031841498,-3993.35858801,0.000199,2]
[408018621,1773031841508,-487.0,0.0001991,2]
[408018622,1773031841518,-250.0,0.00019946,2]
[408018623,1773031841531,-250.0,0.00019946,2]
[408018624,1773031841545,-501.60917986,0.00019973,2]
[408018625,1773031841555,-150.0,0.00019973,2]
[408018626,1773031841565,-200.01,0.00019976,2]
[408018627,1773031841576,-591.89,0.00019988,2]
[408018628,1773031841587,-1427.0,0.0001999,2]
[408018629,1773031841596,-614.83539045,0.0001999,2]
[408018630,1773031841608,-614.83539045,0.0001999,2]
[408018631,1773031841619,-614.83539045,0.0001999,2]
[408018632,1773031841630,-487.0,0.00019994,2]
[408018633,1773031841640,-500.0,0.00019996,2]
[408018634,1773031841650,-500.0,0.00019996,2]
[408018635,1773031841659,-151.0,0.00019997,2]
[408018636,1773031841670,-500.0,0.00019997,2]
[408018637,1773031841681,-622.461,0.00019998,2]
[408018638,1773031841691,-1342.0,0.00019998,2]
[408018639,1773031841704,-1042.0,0.00019998,2]
[408018640,1773031841717,-3505.0,0.00019998,2]
[408018641,1773031841727,-1279.0,0.00019998,2]
[408018642,1773031841739,-1213.0,0.00019998,2]
[408018643,1773031841751,-922.0,0.00019998,2]
[408018644,1773031841763,-5994.0,0.00019998,2]
[408018645,1773031841773,-2461.0,0.00019998,2]
[408018646,1773031841782,-500.0,0.00019999,2]
[408018647,1773031841793,-500.0,0.00019999,2]
[408018648,1773031841804,-500.0,0.00019999,2]
[408018649,1773031841815,-500.0,0.00019999,2]
[408018650,1773031841826,-500.0,0.00019999,2]
[408018651,1773031841836,-500.0,0.00019999,2]
[408018652,1773031841845,-500.0,0.00019999,2]
[408018653,1773031841855,-500.0,0.00019999,2]
[408018654,1773031841865,-300.0,0.00019999,2]
[408018655,1773031841875,-500.0,0.00019999,2]
[408018656,1773031841885,-500.0,0.00019999,2]
[408018657,1773031841896,-507.08615799,0.00019999,2]
[408018658,1773031841906,-500.0,0.00019999,2]
[408018659,1773031841917,-500.0,0.00019999,2]
[408018660,1773031841927,-500.0,0.00019999,2]
[408018661,1773031841938,-490.0,0.00019999,2]
[408018662,1773031841948,-500.0,0.00019999,2]
[408018663,1773031841958,-500.0,0.00019999,2]
[408018664,1773031841968,-500.0,0.00019999,2]
[408018665,1773031841978,-500.0,0.00019999,2]
[408018666,1773031841988,-500.0,0.00019999,2]
[408018667,1773031841999,-500.0,0.00019999,2]
[408018668,1773031842010,-500.0,0.00019999,2]
[408018669,1773031842020,-500.0,0.00019999,2]
[408018670,1773031842030,-500.0,0.00019999,2]
[408018671,1773031842039,-500.0,0.00019999,2]
[408018672,1773031842049,-426.88612498,0.00019999,2]
[408018673,1773031842058,-591.25,0.00019999,2]
[408018674,1773031842068,-591.25,0.00019999,2]
[408018675,1773031842078,-591.25,0.00019999,2]
[408018676,1773031842087,-591.25,0.00019999,2]
[408018677,1773031842097,-591.25,0.00019999,2]
[408018678,1773031842107,-591.25,0.00019999,2]
[408018679,1773031842116,-591.25,0.00019999,2]
[408018680,1773031842125,-591.25,0.00019999,2]
[408018681,1773031842135,-591.25,0.00019999,2]
[408018682,1773031842145,-591.25,0.00019999,2]
[408018683,1773031842154,-591.25,0.00019999,2]
[408018684,1773031842164,-591.25,0.00019999,2]
[408018685,1773031842173,-591.25,0.00019999,2]
[408018686,1773031842182,-591.25,0.00019999,2]
[408018687,1773031842192,-591.25,0.00019999,2]
[408018688,1773031842202,-591.25,0.00019999,2]
[408018689,1773031842213,-591.25,0.00019999,2]
[408018690,1773031842223,-591.25,0.00019999,2]
[408018691,1773031842232,-591.25,0.00019999,2]
[408018692,1773031842241,-591.25,0.00019999,2]
[408018693,1773031842251,-591.25,0.00019999,2]
[408018694,1773031842260,-591.25,0.00019999,2]
[408018695,1773031842269,-591.33016354,0.00019999,2]
[408018696,1773031842278,-500.0,0.00019999,2]
[408018697,1773031842288,-500.0,0.00019999,2]
[408018698,1773031842297,-500.0,0.00019999,2]
[408018699,1773031842308,-500.0,0.00019999,2]
[408018700,1773031842318,-505.78229935,0.00019999,2]
[408018701,1773031842329,-500.0,0.00019999,2]
[408018702,1773031842338,-503.03760092,0.00019999,2]
[408018703,1773031842348,-6583.84311317,0.00019999,2]
[408018704,1773031842358,-500.0,0.00019999,2]
[408018705,1773031842367,-500.0,0.00019999,2]
[408018706,1773031842377,-500.0,0.00019999,2]
[408018707,1773031842387,-500.0,0.00019999,2]
[408018708,1773031842397,-500.0,0.00019999,2]
[408018709,1773031842407,-500.0,0.00019999,2]
[408018710,1773031842417,-506.77106008,0.00019999,2]
[408018711,1773031842426,-500.0,0.00019999,2]
[408018712,1773031842436,-500.0,0.00019999,2]
[408018713,1773031842450,-605.55782896,0.00019999,2]
[408018714,1773031842460,-702.19,0.00019999,2]
[408018715,1773031842474,-702.19,0.00019999,2]
[408018716,1773031842483,-702.19,0.00019999,2]
[408018717,1773031842493,-702.19,0.00019999,2]
[408018718,1773031842503,-702.19,0.00019999,2]
[408018719,1773031842514,-702.19,0.00019999,2]
[408018720,1773031842523,-702.19,0.00019999,2]
[408018721,1773031842535,-702.19,0.00019999,2]
[408018722,1773031842546,-702.19,0.00019999,2]
[408018724,1773031842556,-702.19,0.00019999,2]
[408018726,1773031842566,-702.19,0.00019999,2]
[408018728,1773031842575,-702.19,0.00019999,2]
[408018732,1773031842590,-702.19,0.00019999,2]
[408018736,1773031842602,-702.19,0.00019999,2]
[408018739,1773031842612,-702.19,0.00019999,2]
[408018742,1773031842622,-702.19,0.00019999,2]
[408018745,1773031842632,-702.19,0.00019999,2]
[408018747,1773031842642,-702.19,0.00019999,2]
[408018748,1773031842651,-702.19,0.00019999,2]
[408018749,1773031842661,-702.19,0.00019999,2]
[408018750,1773031842671,-702.19,0.00019999,2]
[408018751,1773031842681,-702.19,0.00019999,2]
[408018752,1773031842691,-702.25580188,0.00019999,2]
[408018753,1773031842701,-500.0,0.00019999,2]
[408018754,1773031842711,-500.0,0.00019999,2]
[408018755,1773031842721,-500.0,0.00019999,2]
[408018756,1773031842731,-500.0,0.00019999,2]
[408018757,1773031842741,-500.0,0.00019999,2]
[408018758,1773031842759,-500.0,0.00019999,2]
[408018759,1773031842782,-500.0,0.00019999,2]
[408018760,1773031842802,-500.0,0.00019999,2]
[408018761,1773031842815,-500.0,0.00019999,2]
[408018762,1773031842826,-500.0,0.00019999,2]
[408018763,1773031842837,-500.0,0.00019999,2]
[408018764,1773031842847,-500.0,0.00019999,2]
[408018765,1773031842857,-349.03538361,0.00019999,2]
[408018766,1773031842869,-294.75283121,0.00019999,2]
[408018767,1773031842883,-500.0,0.00019999,2]
[408018768,1773031842894,-500.0,0.00019999,2]
[408018769,1773031842904,-500.0,0.00019999,2]
[408018770,1773031842915,-507.81136579,0.00019999,2]
[408018771,1773031842927,-391.45346563,0.00019999,2]
[408018772,1773031842936,-1781.0,0.0002,2]
[408018773,1773031842949,-265379.03910582,0.0002,2]
[408018774,1773031842983,-522.9232407,0.0002,2]
[408018781,1773031843301,-2204.0,0.00019998,2]
[408018788,1773031845618,-1353.55588657,0.00019998,2]
[408018789,1773031845630,-203.20411343,0.00019998,2]
[408018790,1773031845639,-168.57141686,0.0002,2]
[408018837,1773031946387,500.0,8e-05,2]
[408018838,1773031947459,500.0,8e-05,2]
[408018839,1773031947696,881.14285643,8e-05,2]
[408018840,1773031948511,500.0,8e-05,2]
[408018841,1773031950435,500.0,8e-05,2]
[408018842,1773031950909,500.0,8e-05,2]
[408018843,1773031951384,500.0,8e-05,2]
[408018844,1773031951859,643.20047838,8e-05,2]
[408018845,1773031994373,160.0,8e-05,20]
[408018847,1773032235908,502.24241651,8e-05,2]
[408018848,1773032236488,597.34120166,8e-05,2]
[408018849,1773032240488,500.0,8e-05,2]
[408018850,1773032241008,500.0,8e-05,2]
[408018851,1773032246184,500.0,8e-05,2]
[408018852,1773032396784,-8195.91383267,0.0001199,2]
[408018853,1773032396936,-10000.01,0.0001199,2]
[408018854,1773032397050,-10000.01,0.0001199,2]
[408018855,1773032397173,-553.73692401,0.0001199,2]
[408018856,1773032397197,-8892.53615198,0.0001199,2]
[408018857,1773032401037,6364.44384349,8e-05,2]
[408018858,1773032401226,1200.0,0.00011989,2]
[408018860,1773032542637,500.0,8e-05,2]
[408018861,1773032543467,500.0,8e-05,2]
[408018862,1773032544609,500.0,8e-05,2]
[408018863,1773032546504,500.0,8e-05,2]
[408018864,1773032548080,500.0,8e-05,2]
[408018865,1773032548575,500.0,8e-05,2]
[408018866,1773032549059,500.0,8e-05,2]
[408018867,1773032549520,500.0,8e-05,2]
[408018868,1773032555927,98984.0,9.5e-05,3]
[408018869,1773032555952,57188.60937506,9.5e-05,3]
[408018872,1773032837023,901.76339442,8e-05,2]
[408018873,1773032837096,500.0,8e-05,2]
[408018874,1773032837581,500.0,8e-05,2]
[408018875,1773032843013,637.61999316,8e-05,2]
[408018876,1773032845943,534.56315158,8e-05,2]
[408018877,1773032851946,543.25685673,8e-05,2]
[408018900,1773033032748,-534.06656813,0.00013414,2]
[408018901,1773033032762,-392.0164969,0.00013414,2]
[408018902,1773033032774,-83.12335536,0.00013414,2]
[408018903,1773033032783,-300.0,0.00013999,2]
[408018904,1773033032793,-480.0,0.00013999,2]
[408018905,1773033032803,-181.78,0.00014,2]
[408018906,1773033032813,-500.0,0.00014,2]
[408018907,1773033032822,-500.0,0.00014,2]
[408018908,1773033032832,-500.0,0.00014,2]
[408018909,1773033032841,-500.0,0.00014,2]
[408018910,1773033032852,-500.0,0.00014,2]
[408018911,1773033032867,-500.0,0.00014,2]
[408018912,1773033032876,-274.2178829,0.00014,2]
[408018913,1773033032888,-225.7821171,0.00014,2]
[408018914,1773033032899,-373.2114021,0.00014825,2]
[408018915,1773033032910,-501.60917986,0.00014825,2]
[408018916,1773033032919,-500.0,0.00014825,2]
[408018917,1773033032930,-500.0,0.00014825,2]
[408018918,1773033032940,-167.17812586,0.00014825,2]
[408018919,1773033032949,-500.0,0.00014825,2]
[408018920,1773033032959,-164.76234511,0.00014825,2]
[408018921,1773033032968,-500.0,0.00015,30]
[408018922,1773033032978,-440.38476081,0.00015,30]